bitfinex/quotes_ETHUSD_20241122
["timestamp","ask_amount","ask_price","bid_price","bid_amount"]
[1732286708281,0.76,3297.3,3296.8,0.30331]
[1732286708499,0.8055,3297.9,3297.4,0.30326]
[1732286708684,3.03251,3297.6,3296.9,0.30331]
[1732286708902,0.31600297,3298.4,3297.8,0.30323]
[1732286709097,3.39089788,3299.4,3296.1,0.01]
[1732286709098,0.792,3298.8,3297.6,3.39089788]
[1732286709291,6.25170006,3298.8,3298.0,0.7646]
[1732286709482,0.31593022,3298.8,3298.2,0.30318]
[1732286709678,3.82304,3299.2,3298.1,0.3032]
[1732286709983,0.792,3299.2,3298.0,0.7646]
[1732286710179,3.03142,3298.8,3298.0,1.0678]
[1732286710381,0.792,3299.2,3297.6,0.30324]
[1732286710613,6.43161788,3299.6,3297.1,0.30329]
[1732286710614,0.8321,3298.3,3297.1,0.30329]
[1732286710814,3.03232,3297.8,3297.1,0.30329]
[1732286711118,0.8321,3298.3,3297.1,0.30329]
[1732286711418,0.8321,3298.3,3296.5,3.7657]
[1732286711419,3.0,3298.2,3297.3,0.30327]
[1732286711582,0.8321,3298.3,3297.6,0.30324]
[1732286711924,0.686382,3298.3,3298.1,0.3032]
[1732286712076,3.03165,3298.6,3297.8,0.30323]
[1732286712280,0.303165,3298.5,3297.8,0.30322]
[1732286712518,0.8095,3298.8,3298.2,0.30318]
[1732286712737,0.8095,3298.8,3297.5,0.30325]
[1732286713016,0.8095,3298.8,3298.1,0.30319]
[1732286713312,0.8095,3298.8,3298.5,0.30316]
[1732286713527,3.0311,3299.2,3298.5,0.30316]
[1732286713678,0.303086,3299.3,3299.0,0.30311]
[1732286713888,0.8113,3299.4,3298.8,0.30314]
[1732286714225,0.8113,3299.4,3298.6,0.30315]
[1732286714393,3.03039,3300.0,3298.3,0.7654]
[1732286714605,0.7938,3300.3,3298.5,3.39089788]
[1732286714606,3.03058,3299.7,3298.5,3.39089788]
[1732286714909,0.7938,3299.8,3298.1,3.0]
[1732286715110,3.03077,3299.5,3298.7,0.30314]
[1732286715322,0.7938,3299.8,3297.9,0.806]
[1732286715323,3.03067,3299.6,3298.6,0.30315]
[1732286715489,0.303067,3299.5,3298.6,0.30315]
[1732286715685,3.333857,3299.5,3298.1,3.3032]
[1732286715889,3.03063,3299.7,3298.6,0.30315]
[1732286716084,3.82429,3299.8,3298.1,3.0]
[1732286716085,3.716172,3299.6,3298.1,3.0]
[1732286716408,3.03069,3299.6,3298.9,0.30312]
[1732286716605,0.7744,3300.3,3298.8,4.21379788]
[1732286716918,3.03026,3300.1,3298.8,4.21379788]
[1732286717093,3.03011,3300.2,3298.8,4.21379788]
[1732286717295,3.03022,3300.1,3298.8,4.21379788]
[1732286717527,0.7744,3300.3,3298.8,4.21379788]
[1732286717727,3.03077,3299.5,3298.8,0.8229]
[1732286717900,0.303077,3299.4,3298.8,0.8229]
[1732286718103,0.7744,3300.3,3298.8,0.8229]
[1732286718307,3.03011,3300.2,3298.8,0.8229]
[1732286718508,6.0303,3300.0,3298.8,0.8229]
[1732286718719,0.60303,3299.9,3298.8,0.8229]
[1732286718915,3.03084,3299.5,3298.8,0.8229]
[1732286719119,3.03089,3299.4,3298.8,0.8229]
[1732286719339,3.03096,3299.3,3298.2,0.7585]
[1732286719543,3.03078,3299.5,3298.2,0.7585]
[1732286719700,3.03094,3299.3,3298.2,0.7585]
[1732286720033,3.03103,3299.2,3298.2,0.7585]
[1732286720195,0.8255,3299.4,3298.5,0.30316]
[1732286720196,3.03086,3299.4,3298.5,0.30316]
[1732286720394,3.03127,3299.0,3298.2,1.06169]
[1732286720595,3.334096,3299.3,3298.5,0.30316]
[1732286720832,0.8255,3299.6,3298.3,0.30318]
[1732286721033,3.03104,3299.2,3298.3,0.30318]
[1732286721240,3.85618,3299.6,3298.2,0.7585]
[1732286721532,3.03111,3299.2,3298.5,0.30316]
[1732286721838,3.03094,3299.3,3298.2,0.7585]
[1732286722018,3.0312,3299.1,3298.2,1.06169]
[1732286722222,3.03131,3298.9,3298.2,0.7585]
[1732286722398,3.03122,3299.0,3298.2,0.7585]
[1732286722747,3.0309,3299.4,3297.8,0.7596]
[1732286722748,3.03221,3298.0,3297.8,0.7596]
[1732286722914,3.03224,3297.9,3297.4,0.7596]
[1732286723230,3.03218,3298.0,3297.4,0.7596]
[1732286723442,3.03222,3298.0,3297.4,0.7596]
[1732286723596,3.03257,3297.6,3296.7,0.7596]
[1732286723797,3.03287,3297.3,3296.7,0.7596]
[1732286724097,0.8109,3297.8,3296.7,0.7596]
[1732286724098,3.03262,3297.5,3296.7,0.7596]
[1732286724437,3.03313,3297.0,3296.1,0.809]
[1732286724610,6.94089788,3297.6,3295.2,3.39089788]
[1732286724812,3.03379,3296.2,3295.3,0.7557]
[1732286725166,3.0,3296.5,3295.3,0.7557]
[1732286725315,3.39089788,3296.4,3294.1,3.39089788]
[1732286725504,3.03488,3295.1,3294.2,0.7557]
[1732286725696,3.03533,3294.6,3293.3,3.39089788]
[1732286725930,3.03533,3294.6,3293.4,0.8242]
[1732286725931,3.03557,3294.3,3293.4,0.8242]
[1732286726134,0.303557,3294.2,3292.8,0.8124]
[1732286726340,3.03627,3293.6,3292.8,0.8124]
[1732286726551,3.85688,3294.3,3292.8,0.8124]
[1732286726822,3.8213,3294.3,3292.9,3.39089788]
[1732286727023,0.385688,3294.2,3292.9,3.39089788]
[1732286727225,0.385688,3294.2,3292.9,3.9174454]
[1732286727408,0.303488,3295.0,3293.5,0.8286]
[1732286727622,0.8304,3295.9,3293.9,3.9174454]
[1732286727832,0.8304,3295.9,3294.4,3.9174454]
[1732286727833,0.30341,3295.8,3294.4,3.9174454]
[1732286728010,3.03407,3295.9,3294.4,3.9174454]
[1732286728223,3.86393,3296.5,3294.5,3.0]
[1732286728401,3.86393,3296.5,3294.9,3.9174454]
[1732286728629,3.86393,3296.5,3295.0,3.55]
[1732286728630,3.03382,3296.2,3295.0,3.55]
[1732286728834,3.03369,3296.4,3295.0,3.55]
[1732286729145,3.03416,3295.8,3294.8,0.55]
[1732286729301,3.03398,3296.0,3294.7,0.8021]
[1732286729498,0.303398,3295.9,3295.0,0.55]
[1732286729703,3.03359,3296.5,3295.0,3.55]
[1732286729937,3.03326,3296.8,3295.0,3.55]
[1732286730238,3.03333,3296.7,3295.2,0.55]
[1732286730413,0.7549,3297.1,3295.2,0.55]
[1732286730616,0.7549,3297.1,3294.7,0.8021]
[1732286730617,3.03315,3296.9,3294.7,0.8021]
[1732286730938,3.0,3296.4,3294.8,0.55]
[1732286731152,0.603354,3296.3,3294.8,0.55]
[1732286731319,3.03371,3296.3,3294.8,0.55]
[1732286731650,3.03427,3295.7,3294.7,0.8021]
[1732286731802,0.303427,3295.6,3294.7,0.8021]
[1732286732002,3.03445,3295.5,3294.7,0.8021]
[1732286732239,3.03453,3295.4,3294.7,0.8021]
[1732286732405,0.7843,3296.3,3294.0,0.7904]
[1732286732406,0.303453,3295.3,3294.0,0.7904]
[1732286732602,0.7843,3296.3,3294.0,0.7904]
[1732286732603,3.0,3296.2,3294.0,0.7904]
[1732286732935,3.03444,3295.5,3294.0,0.7904]
[1732286733136,3.03427,3295.7,3294.0,0.7904]
[1732286733301,3.0,3295.2,3294.0,0.7904]
[1732286733507,3.03536,3294.5,3293.1,0.8174]
[1732286733733,3.03531,3294.6,3293.1,0.8174]
[1732286733941,0.40666,3294.9,3293.1,0.8174]
[1732286734119,3.03573,3294.1,3293.2,0.30364]
[1732286734330,3.339413,3294.0,3293.1,0.8174]
[1732286734534,3.03584,3294.0,3293.1,0.8174]
[1732286734710,3.03601,3293.8,3293.1,0.8174]
[1732286734912,3.0,3294.0,3293.1,0.8174]
[1732286735127,0.603536,3294.4,3294.0,0.30357]
[1732286735362,0.40666,3294.9,3294.3,0.30355]
[1732286735564,3.0,3295.4,3294.6,0.30352]
[1732286735739,0.7832,3295.6,3294.2,0.7642]
[1732286735940,0.7832,3295.6,3294.8,0.3035]
[1732286735941,0.381746,3295.6,3294.8,0.3035]
[1732286736177,3.03412,3295.9,3294.9,0.30349]
[1732286736337,0.303412,3295.8,3294.4,0.30354]
[1732286736536,0.8328,3296.2,3294.9,0.30349]
[1732286736744,3.03429,3295.7,3294.9,0.30349]
[1732286736978,0.303429,3295.6,3294.8,0.3035]
[1732286737288,3.03436,3295.6,3294.7,0.30351]
[1732286737455,3.03436,3295.6,3294.4,0.85354]
[1732286737456,0.303436,3295.6,3294.4,0.85354]
[1732286737639,3.03444,3295.5,3294.5,0.30353]
[1732286737840,3.03427,3295.7,3294.8,0.30349]
[1732286738078,3.03427,3295.7,3294.9,0.30349]
[1732286738275,3.03427,3295.7,3294.2,1.06776]
[1732286738480,6.03437,3295.6,3294.9,0.30349]
[1732286738789,0.603437,3295.5,3294.9,0.30349]
[1732286739074,3.034,3296.0,3295.1,0.30347]
[1732286739272,8.75,3296.7,3295.4,0.30345]
[1732286739273,3.03388,3296.2,3295.4,0.30345]
[1732286739479,8.75,3296.7,3295.2,0.30347]
[1732286739480,3.03354,3296.5,3295.2,0.7737]
[1732286739666,3.03352,3296.5,3295.3,0.55]
[1732286739851,0.303354,3296.4,3296.2,0.30337]
[1732286740054,3.03308,3297.0,3296.4,0.30335]
[1732286740268,3.80482854,3297.2,3296.4,0.30335]
[1732286740471,0.7685,3297.3,3296.3,0.751]
[1732286740692,0.7993,3297.9,3296.4,0.30336]
[1732286740857,0.39174454,3297.8,3296.4,0.58033516]
[1732286741188,0.31586701,3298.3,3297.7,0.751]
[1732286741491,3.9174454,3299.4,3297.7,0.751]
[1732286741492,3.03121,3299.1,3298.2,0.30319]
[1732286741645,3.03121,3299.1,3298.4,0.30317]
[1732286741839,0.40751952,3299.3,3297.7,1.05423]
[1732286741840,3.43847952,3299.3,3298.3,0.30318]
[1732286742080,0.34384595,3299.2,3298.4,0.30317]
[1732286742279,0.3374876,3299.1,3298.6,0.30315]
[1732286742443,3.031,3299.3,3298.3,0.30317]
[1732286742641,0.3031,3299.2,3298.5,0.30315]
[1732286742952,0.3031,3299.2,3299.1,0.30311]
[1732286743155,0.3031,3299.2,3297.9,3.9174454]
[1732286743156,0.8064,3300.0,3298.3,0.03031458]
[1732286743339,3.03058,3299.7,3298.4,0.55]
[1732286743544,3.03039,3299.9,3298.4,0.85317]
[1732286743841,3.0304,3299.9,3299.0,0.30311]
[1732286744049,3.414249,3299.8,3299.0,0.30311]
[1732286744273,3.03059,3299.7,3298.2,0.55]
[1732286744484,3.8367,3300.0,3298.2,0.55]
[1732286744485,0.303059,3299.6,3298.2,0.55]
[1732286744640,3.03006,3300.3,3298.5,0.55]
[1732286744845,3.03019,3300.2,3298.5,0.55]
[1732286745042,0.606025,3300.1,3298.5,0.55]
[1732286745271,3.02984,3300.5,3298.5,0.55]
[1732286745511,1.220352,3301.4,3298.5,0.55]
[1732286745512,0.8023,3301.1,3299.0,3.55]
[1732286745659,3.02963,3300.8,3299.0,0.55]
[1732286745848,3.02963,3300.8,3298.4,3.9174454]
[1732286745849,0.302963,3300.7,3299.2,0.55]
[1732286746355,3.02912,3301.3,3299.5,0.8259]
[1732286746565,0.7726,3301.6,3299.5,0.8259]
[1732286746566,3.02901,3301.4,3299.6,0.55]
[1732286746884,0.302901,3301.3,3299.6,0.55]
[1732286747599,3.302901,3301.3,3299.6,0.55]
[1732286748259,3.0292,3301.2,3299.6,0.55]
[1732286748470,0.302901,3301.3,3299.5,0.8259]
[1732286748693,3.3623911,3301.2,3299.5,0.8259]
[1732286748982,0.3331911,3301.2,3299.5,0.8259]
[1732286749348,3.03014,3300.2,3299.5,0.8259]
[1732286749543,3.3331911,3301.2,3299.5,0.8259]
[1732286749744,3.0303,3300.0,3299.5,0.8259]
[1732286750167,3.03062,3299.7,3299.5,0.8259]
[1732286750347,3.03062,3299.7,3298.0,0.8082]
[1732286750723,0.303062,3299.6,3298.2,0.8082]
[1732286750982,3.03012,3300.2,3298.6,0.7936]
[1732286751182,3.02996,3300.4,3298.6,0.7936]
[1732286751485,0.602992,3300.4,3298.7,0.55]
[1732286751785,6.02983,3300.6,3298.7,0.55]
[1732286752088,3.03003,3300.3,3299.1,0.55]
[1732286752259,3.03039,3300.0,3299.1,0.55]
[1732286752464,3.03098,3299.3,3299.0,0.7573]
[1732286752783,6.03048,3299.8,3298.2,0.06930187]
[1732286753090,3.03168,3298.5,3297.9,0.8066]
[1732286753298,3.03182,3298.4,3297.9,0.8066]
[1732286753595,0.303182,3298.3,3297.9,0.8066]
[1732286753747,3.0321,3298.1,3297.9,0.8066]
[1732286753948,3.03189,3298.3,3296.5,0.815]
[1732286754158,3.03189,3298.3,3296.5,0.84532589]
[1732286754474,3.03143,3298.8,3296.6,0.8741355]
[1732286754669,3.03143,3298.8,3297.0,0.8048]
[1732286754967,4.7335454,3299.4,3297.0,0.8048]
[1732286755171,3.03136,3298.9,3297.0,0.8048]
[1732286755398,3.03122,3299.0,3297.0,0.8048]
[1732286755697,0.47335454,3299.3,3297.0,0.8048]
[1732286756158,3.03112,3299.1,3297.0,0.8048]
[1732286756359,0.47335454,3299.3,3297.0,0.8048]
[1732286756688,3.03254,3297.6,3297.0,0.8048]
[1732286756997,3.03262,3297.5,3297.0,0.8048]
[1732286757223,3.03186,3298.3,3297.0,0.8048]
[1732286757495,0.77500054,3298.2,3296.6,0.0693355]
[1732286757680,3.03278,3297.3,3296.6,0.0693355]
[1732286757887,0.77500054,3298.2,3296.5,0.7602]
[1732286758206,3.03324,3296.8,3296.5,0.7602]
[1732286758359,3.03281,3297.3,3296.5,0.7602]
[1732286758557,3.03377,3296.3,3295.1,0.7867]
[1732286758998,3.03315,3296.9,3295.1,0.7867]
[1732286759197,3.03418,3295.8,3295.1,0.7867]
[1732286759498,3.03388,3296.1,3295.1,0.7867]
[1732286759666,0.303388,3296.0,3295.1,0.7867]
[1732286760073,6.9601554,3297.4,3295.1,0.7867]
[1732286760386,3.03296,3297.1,3295.1,0.7867]
[1732286760591,3.03407,3296.0,3295.1,0.7867]
[1732286760764,3.03433,3295.7,3295.1,0.7867]
[1732286760959,3.03365,3296.4,3295.1,0.7867]
[1732286761294,0.55,3296.7,3294.0,0.79285208]
[1732286761502,0.55,3296.7,3293.9,3.9174454]
[1732286761503,3.03435,3295.6,3294.2,0.7625]
[1732286762004,3.03399,3296.0,3294.2,0.7625]
[1732286762167,3.0346,3295.4,3294.2,0.7625]
[1732286762507,3.03434,3295.7,3294.2,0.7625]
[1732286762676,3.03475,3295.2,3294.2,0.7625]
[1732286762879,3.03454,3295.4,3294.2,0.7625]
[1732286763079,3.03471,3295.3,3294.2,0.7625]
[1732286763265,3.9174454,3296.4,3294.2,0.7625]
[1732286763266,3.03454,3295.4,3294.2,0.7625]
[1732286763465,3.03473,3295.2,3294.2,0.7625]
[1732286763697,3.0337,3296.3,3294.2,0.7625]
[1732286764017,0.55,3296.2,3294.2,0.7625]
[1732286764166,3.03507,3294.9,3294.2,0.7625]
[1732286764372,3.03524,3294.7,3294.2,0.7625]
[1732286764577,3.9174454,3295.8,3294.2,0.7625]
[1732286764771,3.9174454,3295.8,3292.6,0.7936]
[1732286764772,4.7026454,3294.8,3292.6,0.7936]
[1732286765072,3.03642,3293.4,3292.7,0.06941762]
[1732286765360,3.03683,3293.0,3292.7,0.06941762]
[1732286765504,0.8307,3293.5,3292.7,0.06941762]
[1732286765712,3.0361,3293.7,3292.7,0.06941762]
[1732286765919,0.30361,3293.6,3292.7,0.06941762]
[1732286766404,3.03582,3294.0,3292.8,0.7983]
[1732286766970,3.03537,3294.5,3292.9,0.55]
[1732286767203,3.03556,3294.3,3293.0,0.8125]
[1732286767402,3.03577,3294.1,3293.0,0.8125]
[1732286767714,0.381627,3294.5,3293.0,0.8125]
[1732286767715,3.03602,3293.8,3293.0,0.8125]
[1732286768003,3.83444,3294.3,3293.0,0.8125]
[1732286768205,0.383444,3294.2,3293.0,0.8125]
[1732286768503,3.03642,3293.4,3292.5,0.8954724]
[1732286768710,3.03668,3293.1,3292.5,0.8954724]
[1732286768875,3.03646,3293.3,3292.5,0.8954724]
[1732286769089,3.03656,3293.2,3292.5,0.8954724]
[1732286769276,3.03633,3293.5,3292.5,0.8954724]
[1732286769481,0.303633,3293.4,3292.5,0.8954724]
[1732286769783,3.03695,3292.8,3292.5,0.1059724]
[1732286769981,3.03706,3292.7,3292.5,0.1059724]
[1732286770211,3.03711,3292.6,3292.5,0.1059724]
[1732286770933,3.03692,3292.8,3292.5,0.1059724]
[1732286771424,0.8244,3293.3,3292.5,0.1059724]
[1732286771594,9.3,3294.0,3292.5,0.1059724]
[1732286771928,3.03678,3293.0,3292.5,0.1059724]
[1732286772108,3.03703,3292.7,3292.5,0.1059724]
[1732286772283,0.39174454,3293.7,3292.5,0.1059724]
[1732286772590,3.03677,3293.0,3292.5,0.1059724]
[1732286772923,3.03688,3292.9,3292.5,0.1059724]
[1732286773131,3.03636,3293.5,3292.5,0.1059724]
[1732286773333,3.03638,3293.4,3292.5,0.1059724]
[1732286774620,0.81697099,3293.6,3292.6,0.802]
[1732286774822,3.03627,3293.6,3292.6,0.802]
[1732286774983,3.03646,3293.3,3292.6,0.802]
[1732286775182,3.03624,3293.6,3292.6,0.802]
[1732286775183,3.03603,3293.8,3292.6,0.802]
[1732286775403,0.38110185,3293.9,3292.7,0.3027]
[1732286775609,3.0361,3293.7,3292.6,0.802]
[1732286775802,3.37772419,3293.8,3292.6,0.802]
[1732286776012,3.03612,3293.7,3292.6,0.802]
[1732286776210,0.34169419,3293.8,3292.6,0.802]
[1732286776415,3.9174454,3294.3,3292.6,0.802]
[1732286776416,0.33776042,3293.7,3292.6,0.802]
[1732286776633,3.03591,3294.0,3292.6,0.802]
[1732286776833,3.9174454,3294.3,3292.6,0.802]
[1732286777035,3.03665,3293.1,3292.6,0.802]
[1732286777235,0.303665,3293.0,3292.6,0.802]
[1732286777396,3.03609,3293.7,3292.6,0.802]
[1732286777598,0.8125,3293.5,3292.5,0.1059724]
[1732286777806,3.03694,3292.8,3292.5,0.1059724]
[1732286778021,0.684876,3293.4,3292.5,0.1059724]
[1732286778407,6.79282,3293.7,3292.5,0.1059724]
[1732286778408,3.0,3293.7,3292.5,0.1059724]
[1732286778608,0.796,3292.6,3291.7,0.767]
[1732286778842,3.03813,3291.5,3290.0,0.03038516]
[1732286779012,0.303813,3291.4,3290.1,0.8321]
[1732286779398,3.03864,3291.0,3290.1,0.8321]
[1732286779709,3.03824,3291.4,3290.1,0.8321]
[1732286779895,3.03833,3291.3,3290.1,0.8321]
[1732286780095,3.0385,3291.1,3290.1,0.8321]
[1732286780298,3.03879,3290.8,3290.1,0.8321]
[1732286780542,3.0384,3291.2,3290.1,0.8321]
[1732286780947,3.03824,3291.4,3290.1,0.8321]
[1732286781235,3.0,3291.5,3290.1,0.8321]
[1732286781437,0.68689,3291.7,3290.1,0.8321]
[1732286781597,6.9174454,3292.2,3290.1,0.8321]
[1732286781797,3.03826,3291.4,3290.1,0.8321]
[1732286782042,0.303826,3291.3,3290.1,0.8321]
[1732286782221,3.342146,3291.3,3290.1,0.8321]
[1732286782422,3.03766,3292.0,3290.1,0.8321]
[1732286782423,3.9174454,3291.7,3290.1,0.8321]
[1732286782638,0.55,3292.0,3288.4,0.01]
[1732286782639,3.0,3290.7,3289.3,0.8321]
[1732286782825,3.03924,3290.3,3289.3,0.8321]
[1732286783014,3.0398,3289.7,3287.3,0.01]
[1732286783227,3.9174454,3290.0,3287.2,0.01]
[1732286783228,3.0,3289.9,3288.9,0.7661]
[1732286783429,3.04015,3289.4,3288.9,0.7661]
[1732286783627,6.9574154,3289.5,3288.9,0.7661]
[1732286783827,0.69174454,3289.8,3288.9,0.7661]
[1732286784001,3.9174454,3290.5,3288.9,0.7661]
[1732286784206,3.9174454,3290.5,3285.0,1.52587376]
[1732286784207,3.0,3291.1,3289.3,0.7661]
[1732286784403,0.3,3291.0,3289.3,0.7661]
[1732286784708,4.6879454,3291.5,3289.4,0.03039765]
[1732286784926,3.03828,3291.4,3289.5,0.7661]
[1732286785102,0.77262254,3291.3,3289.5,0.7661]
[1732286785447,0.77262254,3291.3,3289.6,0.55]
[1732286786104,3.0,3291.0,3289.6,0.55]
[1732286786297,3.0387,3290.9,3289.6,0.55]
[1732286786498,3.0,3290.6,3289.5,0.7661]
[1732286786800,3.9174454,3290.0,3289.2,0.1475352]
[1732286786999,3.39174454,3289.9,3289.2,0.1475352]
[1732286787195,6.43141454,3289.9,3289.2,0.1475352]
[1732286787427,3.03977,3289.8,3289.2,0.1475352]
[1732286787741,8.75,3290.8,3289.2,0.1475352]
[1732286787742,3.03879,3290.8,3289.2,0.1475352]
[1732286788035,0.303879,3290.7,3289.2,0.1475352]
[1732286788345,3.03872,3290.9,3289.3,0.8108]
[1732286788634,3.03861,3291.0,3289.4,0.55]
[1732286788836,0.39174454,3290.9,3289.3,1.3702]
[1732286789052,3.03824,3291.4,3289.4,0.85059606]
[1732286789199,0.69556854,3291.3,3289.7,0.55]
[1732286789405,3.03802,3291.7,3290.0,0.55]
[1732286789637,0.607587,3291.6,3290.0,0.55]
[1732286789850,6.9551054,3292.0,3290.3,0.8202]
[1732286790030,3.80960054,3291.9,3290.4,0.55]
[1732286790358,0.77183054,3291.9,3290.5,0.7777]
[1732286790497,3.03767,3292.0,3290.5,0.7777]
[1732286790703,3.03794,3291.7,3290.5,0.7777]
[1732286790956,3.9174454,3292.0,3290.5,0.7777]
[1732286791253,3.0373,3292.4,3290.8,0.55]
[1732286791538,1.213314,3293.3,3291.2,0.55]
[1732286791539,3.03648,3293.3,3291.2,0.55]
[1732286791738,0.303648,3293.2,3291.4,0.55]
[1732286791947,3.3362,3293.6,3291.4,0.774]
[1732286792237,0.31622865,3293.9,3291.8,0.774]
[1732286792402,0.31622865,3293.9,3292.2,0.55]
[1732286792598,0.96750332,3294.6,3292.6,0.55]
[1732286792599,3.03573,3294.1,3292.6,0.55]
[1732286792846,0.303573,3294.0,3292.8,0.55]
[1732286793016,4.23365804,3294.5,3292.7,0.7688]
[1732286793359,3.03558,3294.3,3292.8,0.55]
[1732286793713,3.03564,3294.2,3292.8,0.55]
[1732286793914,3.47463614,3294.4,3292.8,0.55]
[1732286794115,0.77082942,3294.3,3292.8,0.55]
[1732286794425,0.77082942,3294.3,3292.7,0.7688]
[1732286794605,0.77082942,3294.3,3292.8,0.55]
[1732286794926,3.0358,3294.1,3292.8,0.55]
[1732286795104,3.03564,3294.2,3292.8,0.55]
[1732286795304,3.03557,3294.3,3292.8,0.55]
[1732286796020,3.03572,3294.2,3292.8,0.55]
[1732286796217,3.03572,3294.2,3292.7,0.7688]
[1732286796218,0.3162112,3294.4,3292.7,0.7688]
[1732286796460,0.8202,3294.2,3292.7,0.7688]
[1732286796759,3.03631,3293.5,3292.7,0.7688]
[1732286796914,3.03639,3293.4,3292.7,0.7688]
[1732286797119,3.0,3294.0,3292.7,0.7688]
[1732286797120,6.03587,3294.0,3292.7,0.7688]
[1732286797364,6.03573,3294.1,3292.7,0.7688]
[1732286797916,3.0,3293.9,3292.8,0.55]
[1732286798128,3.0,3293.9,3292.7,0.7688]
[1732286798356,3.03622,3293.6,3292.7,0.7688]
[1732286798561,3.0363,3293.5,3292.7,0.7688]
[1732286798860,3.03655,3293.3,3292.7,0.7688]
[1732286799272,3.0,3293.7,3292.7,0.7688]
[1732286799491,3.03584,3294.0,3292.7,0.7688]
[1732286799770,0.303584,3293.9,3292.8,0.55]
[1732286799937,3.03564,3294.2,3292.9,0.55]
[1732286800275,3.03593,3293.9,3293.0,0.7547]
[1732286800445,3.03611,3293.7,3293.0,0.7547]
[1732286800769,3.339623,3293.8,3293.0,0.7547]
[1732286800949,3.036,3293.8,3293.0,0.7547]
[1732286801147,3.03563,3294.2,3293.0,0.7547]
[1732286801353,3.0,3294.0,3293.0,0.7547]
[1732286801544,3.03638,3293.4,3293.0,0.7547]
[1732286802337,3.03653,3293.3,3293.0,0.7547]
[1732286802531,3.03662,3293.2,3293.0,0.7547]
[1732286802737,3.03662,3293.2,3292.5,0.7621]
[1732286802738,3.0,3293.2,3292.5,0.7621]
[1732286802975,3.03674,3293.0,3292.5,0.7621]
[1732286803181,0.303662,3293.1,3292.5,0.7621]
[1732286803349,0.7882,3294.2,3292.5,0.7621]
[1732286803532,3.03639,3293.4,3292.5,0.7621]
[1732286803933,3.03629,3293.5,3292.5,0.7621]
[1732286804161,3.03654,3293.3,3292.5,0.7621]
[1732286804345,3.03648,3293.3,3292.5,0.7621]
[1732286804677,3.03626,3293.6,3292.5,0.7621]
[1732286804884,3.03612,3293.7,3292.5,0.7621]
[1732286805183,3.03638,3293.4,3292.5,0.7621]
[1732286805351,3.03629,3293.5,3292.5,0.7621]
[1732286805758,3.339888,3293.6,3292.5,0.7621]
[1732286806082,3.03663,3293.2,3292.5,0.7621]
[1732286806254,0.303618,3293.6,3292.5,0.7621]
[1732286806255,3.303618,3293.6,3292.5,0.7621]
[1732286806451,3.03711,3292.6,3290.6,3.9174454]
[1732286806774,3.03665,3293.1,3290.7,0.03037975]
[1732286807076,3.03683,3292.9,3290.7,0.4915841]
[1732286807234,3.03702,3292.7,3290.7,0.4915841]
[1732286807434,3.03695,3292.8,3291.1,3.9174454]
[1732286807646,3.0373,3292.4,3291.2,0.55]
[1732286808052,3.03755,3292.2,3290.7,0.06945981]
[1732286808249,0.303755,3292.1,3290.7,0.06945981]
[1732286808462,3.341365,3292.1,3290.7,0.06945981]
[1732286808670,3.03748,3292.2,3290.7,0.06945981]
[1732286808848,3.03768,3292.0,3290.7,0.06945981]
[1732286809048,3.03774,3292.0,3290.7,0.06945981]
[1732286809439,3.03753,3292.2,3290.7,0.06945981]
[1732286809639,3.03736,3292.4,3290.8,0.8041]
[1732286809940,0.303736,3292.3,3290.8,0.83448128]
[1732286810178,3.03696,3292.8,3291.4,0.7814]
[1732286810501,3.03662,3293.2,3291.7,0.55]
[1732286810640,3.03654,3293.3,3291.8,0.7814]
[1732286810835,3.85166,3293.8,3291.8,0.7814]
[1732286810836,3.340244,3293.2,3291.8,0.7814]
[1732286811083,3.03684,3292.9,3291.8,0.7814]
[1732286811241,0.8156,3293.8,3291.9,0.55]
[1732286811449,6.07238,3293.6,3291.8,0.7814]
[1732286811684,3.0367,3293.1,3291.8,0.7814]
[1732286811843,3.03674,3293.0,3291.9,0.55]
[1732286812475,3.03685,3292.9,3291.9,0.55]
[1732286812785,0.607361,3292.9,3292.0,0.7811]
[1732286812944,3.03653,3293.3,3292.0,0.7811]
[1732286813472,3.03648,3293.3,3292.1,0.55]
[1732286813640,3.643756,3293.3,3292.2,0.7811]
[1732286813842,3.03657,3293.2,3292.2,0.7811]
[1732286814049,3.03712,3292.6,3292.2,0.7811]
[1732286814507,3.03739,3292.3,3292.2,0.7811]
[1732286814677,0.303739,3292.3,3292.2,0.7811]
[1732286814881,3.0372,3292.5,3292.2,0.7811]
[1732286815078,3.03694,3292.8,3292.2,0.7811]
[1732286815280,0.303694,3292.7,3292.2,0.7811]
[1732286815687,3.340724,3292.7,3292.2,0.7811]
[1732286815884,0.303694,3292.7,3292.2,0.7811]
[1732286816379,3.03707,3292.7,3292.2,0.7811]
[1732286816587,3.03731,3292.4,3292.2,0.7811]
[1732286816795,3.03739,3292.3,3291.7,0.7529]
[1732286817089,3.03747,3292.3,3291.7,0.7529]
[1732286817281,3.03709,3292.7,3291.7,0.7529]
[1732286817486,3.03785,3291.8,3290.8,0.8247]
[1732286817711,3.03809,3291.6,3290.8,0.8247]
[1732286818585,0.303785,3291.7,3290.8,0.8247]
[1732286818785,3.03775,3292.0,3290.9,0.55]
[1732286818993,3.03791,3291.8,3290.8,0.8247]
[1732286819194,3.7619,3292.5,3290.8,0.8247]
[1732286819195,3.03836,3291.3,3290.8,0.8247]
[1732286819513,3.03784,3291.9,3290.8,0.8247]